bitfinex/quotes_SOLUSD_20250817
["timestamp","ask_amount","ask_price","bid_price","bid_amount"]
[1755402936206,60.36141251,192.06,192.05,2424.53130391]
[1755402936500,63.77801946,192.06,192.05,2424.53130391]
[1755402938005,64.48801946,192.06,192.05,2424.53130391]
[1755402938614,64.48801946,192.06,192.05,2424.56130391]
[1755402939974,64.63018103,192.06,192.05,2424.56130391]
[1755402940177,69.8419508,192.06,192.05,2424.56130391]
[1755402941811,69.84317342,192.06,192.05,2424.56130391]
[1755402942006,69.84645134,192.06,192.05,2424.56130391]
[1755402942480,66.42984439,192.06,192.05,2424.56130391]
[1755402942677,69.84645134,192.06,192.05,2424.56130391]
[1755402947305,33.28645134,192.06,192.05,2424.56130391]
[1755402947520,69.84645134,192.06,192.05,2424.56130391]
[1755402947708,65.96166099,192.06,192.05,2424.56130391]
[1755402947909,69.85723008,192.06,192.05,2424.56130391]
[1755402948284,69.85735273,192.06,192.05,2424.56130391]
[1755402948924,74.2369541,192.06,192.05,2424.56130391]
[1755402949727,74.2369541,192.06,192.05,2397.18968228]
[1755402949728,69.85735273,192.06,192.05,2397.18968228]
[1755402950035,69.85735273,192.06,192.05,2314.21776038]
[1755402950190,69.85735273,192.06,192.05,2285.53310393]
[1755402950612,69.85735273,192.06,192.05,2230.05051749]
[1755402950811,69.85735273,192.06,192.05,2174.09524793]
[1755402951391,69.85735273,192.06,192.05,2145.28526084]
[1755402951593,69.85735273,192.06,192.05,2113.13064025]
[1755402951823,69.85735273,192.06,192.05,2049.33148605]
[1755402952125,69.85735273,192.06,192.05,2016.91226365]
[1755402952302,69.85735273,192.06,192.05,1984.82177987]
[1755402952508,69.85735273,192.06,192.05,1952.56034348]
[1755402952819,69.85735273,192.06,192.05,1920.29890709]
[1755402953118,69.85735273,192.06,192.05,1855.14493333]
[1755402953829,68.52312118,192.06,192.05,1824.688022]
[1755402954124,69.85758538,192.06,192.05,1794.67885782]
[1755402954310,69.85758538,192.06,192.05,1734.10358793]
[1755402954928,81.80520935,192.06,192.05,1584.06834858]
[1755402955127,45.24520935,192.06,192.05,1547.7870793]
[1755402955337,97.46323835,192.06,192.05,1472.86863214]
[1755402955700,97.46323835,192.06,192.05,1393.78561159]
[1755402956030,97.46323835,192.06,192.05,1293.0922383]
[1755402956215,97.46323835,192.06,192.05,1252.98846234]
[1755402956414,97.46323835,192.06,192.05,1213.73763632]
[1755402956627,60.90323835,192.06,192.05,1175.34848986]
[1755402956939,97.46323835,192.06,192.05,1033.76541771]
[1755402957101,97.46323835,192.06,192.05,995.63191815]
[1755402957300,97.46323835,192.06,192.05,957.41568481]
[1755402957928,97.46323835,192.06,192.05,816.1415823]
[1755402958134,97.46323835,192.06,192.05,777.78732731]
[1755402958437,97.46323835,192.06,192.05,738.85812902]
[1755402958805,97.46323835,192.06,192.05,638.87581827]
[1755402959133,97.46323835,192.06,192.05,602.03223441]
[1755402959342,97.46323835,192.06,192.05,566.18578152]
[1755402959520,97.46323835,192.06,192.05,530.20174717]
[1755402959714,91.62267423,192.06,192.05,397.17867644]
[1755402960057,97.4657362,192.06,192.05,362.25611352]
[1755402960429,97.46579595,192.06,192.05,362.25611352]
[1755402960739,97.46579595,192.06,192.05,299.5377103]
[1755402961642,60.90579595,192.06,192.05,299.5377103]
[1755402961807,96.75579595,192.06,192.05,299.5377103]
[1755402962013,96.75594316,192.06,192.05,299.5377103]
[1755402962436,97.44594316,192.06,192.05,299.5377103]
[1755402963425,96.75594316,192.06,192.05,299.5377103]
[1755402963637,48.24823426,192.06,192.05,299.5377103]
[1755402963836,69.15020526,192.06,192.05,300.2077103]
[1755402964921,69.14687974,192.06,192.05,300.2077103]
[1755402965313,69.16166202,192.06,192.05,300.2077103]
[1755402965515,69.16166202,192.06,192.05,299.5377103]
[1755402966053,69.85166202,192.06,192.05,299.5377103]
[1755402966357,85.50887302,192.06,192.05,299.5377103]
[1755402966658,69.85166202,192.06,192.05,299.5377103]
[1755402967229,33.29166202,192.06,192.05,299.5377103]
[1755402967416,69.16166202,192.06,192.05,300.2077103]
[1755402970142,32.60166202,192.06,192.05,300.2077103]
[1755402970353,69.16166202,192.06,192.05,300.2077103]
[1755402970936,69.16140938,192.06,192.05,300.2077103]
[1755402971943,69.16140938,192.06,192.05,299.5377103]
[1755402973129,69.22140938,192.06,192.05,299.5377103]
[1755402974651,67.99423145,192.06,192.05,299.5377103]
[1755402975150,31.43423145,192.06,192.05,299.5377103]
[1755402975336,67.99423145,192.06,192.05,299.5377103]
[1755402977251,31.43423145,192.06,192.05,299.5377103]
[1755402977455,67.99423145,192.06,192.05,299.5377103]
[1755402979359,65.80480243,192.06,192.05,299.5377103]
[1755402979529,67.99423145,192.06,192.05,299.5377103]
[1755402980045,67.99813639,192.06,192.05,299.5377103]
[1755402982931,62.76778538,192.06,192.05,299.5377103]
[1755402983154,68.00079282,192.06,192.05,299.5377103]
[1755402983860,68.00093427,192.06,192.05,299.5377103]
[1755402986160,68.00133961,192.06,192.05,299.5377103]
[1755402989348,31.44133961,192.06,192.05,299.5377103]
[1755402989547,67.98133961,192.06,192.05,299.5377103]
[1755402990646,68.64133961,192.06,192.05,299.5377103]
[1755402992375,68.64467742,192.06,192.05,299.5377103]
[1755402993341,68.64467742,192.06,192.05,273.44446351]
[1755402995064,67.99286964,192.06,192.05,273.44446351]
[1755402995370,67.99471013,192.06,192.05,273.44446351]
[1755402995549,67.99474224,192.06,192.05,273.44446351]
[1755402997477,67.99474224,192.06,192.05,246.96713863]
[1755402998173,67.99473826,192.06,192.05,246.96713863]
[1755402998681,83.65195026,192.06,192.05,246.96713863]
[1755403000978,83.65195026,192.06,192.05,220.71297464]
[1755403001166,83.65195026,192.06,192.05,194.52205663]
[1755403002272,83.65225734,192.06,192.05,194.52205663]
[1755403002473,83.65331737,192.06,192.05,194.52205663]
[1755403002973,83.6542093,192.06,192.05,194.52205663]
[1755403003550,83.6542093,192.06,192.05,175.42772924]
[1755403004967,85.6060563,192.06,192.05,175.42772924]
[1755403005169,86.3160563,192.06,192.05,175.42772924]
[1755403006467,86.3160563,192.06,192.05,144.51789214]
[1755403006666,86.3160563,192.06,192.05,113.60805504]
[1755403007048,82.41328421,192.06,192.05,82.69821794]
[1755403007247,80.46143721,192.06,192.05,51.78838084]
[1755403007469,86.31870182,192.06,192.05,20.87854374]
[1755403007866,49.77868788,192.06,192.05,20.87854374]
[1755403008382,81.11198165,192.06,192.05,20.87854374]
[1755403008679,41.24837714,192.04,192.03,0.72]
[1755403008982,62.7325885,192.04,192.03,0.72]
[1755403009854,65.85693759,192.04,192.03,0.72]
[1755403010058,67.94467459,192.04,192.03,0.72]
[1755403011962,67.94467459,192.04,192.03,0.03]
[1755403012976,67.94467459,192.04,192.03,0.72]
[1755403016991,31.40467459,192.04,192.03,0.72]
[1755403017163,67.94467459,192.04,192.03,0.72]
[1755403018912,68.65467459,192.04,192.03,0.03]
[1755403019077,70.60745243,192.04,192.03,0.03]
[1755403019257,63.41224939,192.04,192.03,0.03]
[1755403019610,70.6088421,192.04,192.03,0.03]
[1755403020127,69.8988421,192.04,192.03,0.03]
[1755403020283,67.94604877,192.04,192.03,0.72]
[1755403020969,67.94604877,192.04,192.03,0.03]
[1755403021170,68.65604877,192.04,192.03,0.03]
[1755403021590,15.10621557,192.02,192.01,0.72]
[1755403021764,62.73396268,192.02,192.01,0.03]
[1755403022366,64.82180868,192.02,192.01,0.03]
[1755403022694,65.53180868,192.02,192.01,0.03]
[1755403023795,68.65648319,192.02,192.01,0.03]
[1755403025064,67.94648319,192.02,192.01,0.03]
[1755403025597,67.94648319,192.02,192.01,0.72]
[1755403032997,31.40648319,192.02,192.01,0.72]
[1755403033321,67.9229493,192.02,192.01,0.72]
[1755403033685,67.92291266,192.02,192.01,0.72]
[1755403035503,31.40291266,192.02,192.01,0.72]
[1755403035684,67.92291266,192.02,192.01,0.72]
[1755403036306,67.92323418,192.02,192.01,0.72]
[1755403037009,64.41087704,192.02,192.01,0.72]
[1755403037305,67.92403371,192.02,192.01,0.72]
[1755403038217,67.92403371,192.02,192.01,0.03]
[1755403040302,68.62403371,192.02,192.01,0.03]
[1755403042316,67.92403371,192.02,192.01,0.03]
[1755403042917,68.62403371,192.02,192.01,0.03]
[1755403044311,68.62403371,192.02,191.99,0.71000001]
[1755403044312,41.10621557,192.0,191.99,0.71000001]
[1755403044522,88.7115132,192.0,191.99,0.71000001]
[1755403045009,90.7994682,192.0,191.99,0.71000001]
[1755403045320,93.9244682,192.0,191.99,0.71000001]
[1755403048215,90.02129996,192.0,191.99,0.71000001]
[1755403048515,93.92539248,192.0,191.99,0.71000001]
[1755403048713,93.92587205,192.0,191.99,0.71000001]
[1755403053012,68.62587205,192.0,191.99,1e-08]
[1755403053612,32.10587205,192.0,191.99,1e-08]
[1755403053806,67.90587205,192.0,191.99,0.71000001]
[1755403056425,67.90587205,192.0,191.99,1e-08]
[1755403057334,67.90329594,192.0,191.99,1e-08]
[1755403057921,68.60329594,192.0,191.99,1e-08]
[1755403058124,70.55456827,192.0,191.99,1e-08]
[1755403058308,34.05456827,192.0,191.99,1e-08]
[1755403058501,70.55456827,192.0,191.99,1e-08]
[1755403059298,70.55240482,192.0,191.99,1e-08]
[1755403061407,34.05240482,192.0,191.99,1e-08]
[1755403061614,70.55240482,192.0,191.99,1e-08]
[1755403062311,34.05240482,192.0,191.99,1e-08]
[1755403062520,70.54753652,192.0,191.99,1e-08]
[1755403063351,26.0,191.98,191.97,1e-08]
[1755403063648,88.68456857,191.98,191.97,1e-08]
[1755403063934,92.50989412,191.98,191.97,1e-08]
[1755403064136,94.59817712,191.98,191.97,1e-08]
[1755403068430,96.68172749,191.98,191.97,1e-08]
[1755403075172,92.78170161,191.98,191.97,1e-08]
[1755403075349,96.67559,191.98,191.97,1e-08]
[1755403078253,96.67289921,191.98,191.97,1e-08]
[1755403078549,31.14130862,191.98,191.97,0.70000001]
[1755403078741,27.34160388,191.98,191.97,0.70000001]
[1755403078930,67.85697757,191.98,191.97,0.70000001]
[1755403079129,93.85697757,191.98,191.97,0.70000001]
[1755403080654,95.94493257,191.98,191.97,0.70000001]
[1755403080830,93.85697757,191.98,191.97,0.70000001]
[1755403081548,91.66754855,191.98,191.97,0.70000001]
[1755403081739,93.85697757,191.98,191.97,0.70000001]
[1755403086430,90.35465654,191.98,191.97,0.70000001]
[1755403086630,93.86109882,191.98,191.97,0.70000001]
[1755403089257,89.9678867,191.98,191.97,0.70000001]
[1755403089453,93.86587864,191.98,191.97,0.70000001]
[1755403089933,93.8660238,191.98,191.97,1e-08]
[1755403090355,93.8660238,191.98,191.97,0.70000001]
[1755403092260,91.67659478,191.98,191.97,0.70000001]
[1755403092458,93.86715205,191.98,191.97,0.70000001]
[1755403100679,93.86715205,191.98,191.97,1e-08]
[1755403101864,94.55715205,191.98,191.97,1e-08]
[1755403102980,58.07715205,191.98,191.97,1e-08]
[1755403103165,94.53715205,191.98,191.97,1e-08]
[1755403103989,58.13715205,191.98,191.97,1e-08]
[1755403104160,94.59715205,191.98,191.97,1e-08]
[1755403104364,41.10621557,191.95,191.94,0.03]
[1755403104577,0.14216157,191.94,191.93,0.03]
[1755403104877,26.87088271,191.94,191.93,0.03]
[1755403105560,32.08084415,191.94,191.93,0.03]
[1755403106354,34.16956315,191.94,191.93,0.03]
[1755403107374,30.26801924,191.94,191.93,0.03]
[1755403107699,34.16801524,191.94,191.93,0.03]
[1755403109273,15.24837714,191.93,191.91,0.03]
[1755403109461,63.3293348,191.93,191.91,0.03]
[1755403109994,65.4180538,191.93,191.91,0.03]
[1755403110494,64.08274753,191.93,191.91,0.03]
[1755403110692,65.41721342,191.93,191.91,0.03]
[1755403111274,70.62744631,191.93,191.91,0.03]
[1755403118109,68.53872731,191.93,191.91,0.03]
[1755403118405,70.62744631,191.93,191.91,0.03]
[1755403119382,26.0,191.9,191.89,1e-08]
[1755403119613,15.24837714,191.89,191.88,1e-08]
[1755403119924,40.00434128,191.89,191.88,1e-08]
[1755403120085,42.09360528,191.89,191.88,1e-08]
[1755403121002,47.39011728,191.89,191.88,0.71000001]
[1755403121508,51.26697037,191.89,191.88,0.71000001]
[1755403122583,51.25592521,191.89,191.88,0.71000001]
[1755403123189,12.60649619,191.89,191.88,0.71000001]
[1755403123412,51.25592521,191.89,191.88,0.71000001]
[1755403123611,47.74948293,191.89,191.88,0.71000001]
[1755403123787,51.24890492,191.89,191.88,0.71000001]
[1755403124414,52.5800288,191.89,191.88,0.71000001]
[1755403124610,43.84815692,191.89,191.88,0.71000001]
[1755403126715,46.03758594,191.89,191.88,0.71000001]
[1755403127902,9.57758594,191.89,191.88,0.71000001]
[1755403128511,7.38815692,191.89,191.88,0.71000001]
[1755403128716,7.38711075,191.89,191.88,0.71000001]
[1755403133708,9.57653977,191.89,191.88,0.71000001]
[1755403134512,5.68885101,191.89,191.88,0.71000001]
[1755403134726,9.57894162,191.89,191.88,0.71000001]
[1755403137530,9.57894162,191.89,191.88,1e-08]
[1755403138636,9.57894162,191.89,191.88,0.68000001]
[1755403141637,7.3895126,191.89,191.88,0.68000001]
[1755403142295,3.49942199,191.89,191.88,8.60217865]
[1755403142495,0.06,191.91,191.88,8.60217865]
[1755403142700,0.06,191.91,191.9,2.18942902]
[1755403142923,7.45832484,191.91,191.9,2.18942902]
[1755403143108,7.45832484,191.91,191.9,2.86942902]
[1755403143304,7.45832484,191.91,191.9,8.08047644]
[1755403144600,7.45832484,191.91,191.9,5.89104742]
[1755403144899,7.45832484,191.91,191.9,8.08047644]
[1755403145520,3.56446506,191.91,191.9,8.08047644]
[1755403145727,7.46048725,191.91,191.9,8.08047644]
[1755403145905,9.64991627,191.91,191.88,1e-08]
[1755403146113,2.18942902,191.89,191.88,0.68000001]
[1755403146433,9.59238071,191.89,191.88,1e-08]
[1755403147506,10.28238071,191.89,191.88,1e-08]
[1755403147706,9.59238071,191.89,191.88,1e-08]
[1755403150408,10.9282057,191.89,191.88,1e-08]
[1755403151723,10.93293608,191.89,191.88,1e-08]
[1755403151923,8.74349786,191.89,191.88,1e-08]
[1755403152113,10.93292688,191.89,191.88,1e-08]
[1755403153638,10.99292688,191.89,191.88,1e-08]
[1755403155263,8.80349786,191.89,191.88,1e-08]
[1755403155615,10.99292688,191.89,191.88,1e-08]
[1755403157749,10.99291559,191.89,191.88,1e-08]
[1755403168457,11.65291559,191.89,191.88,1e-08]
[1755403169757,7.75179871,191.89,191.88,1e-08]
[1755403169955,11.65773471,191.89,191.88,1e-08]
[1755403170275,11.65794883,191.89,191.88,1e-08]
[1755403170427,7.09302791,191.89,191.88,1e-08]
[1755403170634,10.99794883,191.89,191.88,1e-08]
[1755403176741,8.80851981,191.89,191.88,1e-08]
[1755403176943,10.99794883,191.89,191.88,1e-08]
[1755403180172,11.65794883,191.89,191.88,1e-08]
[1755403181849,11.66011186,191.89,191.88,1e-08]
[1755403182278,11.66023536,191.89,191.88,1e-08]
[1755403187787,21.3879934,191.89,191.88,1e-08]
[1755403190962,21.38838489,191.89,191.88,1e-08]
[1755403191480,17.0141074,191.89,191.88,1e-08]
[1755403191980,53.4141074,191.89,191.88,1e-08]
[1755403192276,57.81053785,191.89,191.88,1e-08]
[1755403193987,53.90396832,191.89,191.88,1e-08]
[1755403194171,57.81118849,191.89,191.88,1e-08]
[1755403194349,52.56589687,191.89,191.88,1e-08]
[1755403194683,57.81068785,191.89,191.88,1e-08]
[1755403196771,53.4142574,191.89,191.88,1e-08]
[1755403197088,57.80786825,191.89,191.88,1e-08]
[1755403198651,13.20495868,191.89,191.88,0.69000001]
[1755403198875,8.81054004,191.89,191.88,0.69000001]
[1755403200657,8.81054004,191.89,191.88,5.90159058]
[1755403200984,7.47311004,191.89,191.88,5.90159058]
[1755403201790,7.47311004,191.89,191.88,8.61217865]
[1755403201966,0.06,191.89,191.88,8.61217865]
[1755403204582,0.06,191.89,191.88,8.0910196]
[1755403205671,0.06,191.89,191.88,8.61217865]
[1755403208292,0.06,191.89,191.88,8.0910196]
[1755403211993,0.06,191.89,191.88,5.90159058]
[1755403212173,0.06,191.89,191.88,5.21159058]
[1755403213095,0.06,191.89,191.88,1e-08]
[1755403213271,0.73,191.89,191.88,1e-08]
[1755403213468,6.42411474,191.89,191.88,1e-08]
[1755403213693,11.65171295,191.89,191.88,1e-08]
[1755403213866,10.31825983,191.89,191.88,1e-08]
[1755403214070,11.6522102,191.89,191.88,1e-08]
[1755403214595,16.86347295,191.89,191.88,1e-08]
[1755403214896,18.10057198,191.89,191.88,1e-08]
[1755403216494,18.24273355,191.89,191.88,1e-08]
[1755403216998,33.34894912,191.89,191.88,1e-08]
[1755403218512,12.889253,191.89,191.88,1e-08]
[1755403218675,7.45933717,191.89,191.88,1e-08]
[1755403219000,10.88586522,191.89,191.88,1e-08]
[1755403219573,11.57586522,191.89,191.88,1e-08]
[1755403220015,11.57452804,191.89,191.88,1e-08]
[1755403220304,7.45713912,191.89,191.88,1e-08]
[1755403220500,11.57366717,191.89,191.88,1e-08]
[1755403222811,6.9903529,191.89,191.88,1e-08]
[1755403222993,10.88320119,191.89,191.88,1e-08]
[1755403223996,11.57320119,191.89,191.88,1e-08]
[1755403225808,7.6803529,191.89,191.88,1e-08]
[1755403226015,11.57336116,191.89,191.88,1e-08]
[1755403227616,10.88336116,191.89,191.88,1e-08]
[1755403228490,7.45683311,191.89,191.88,1e-08]
[1755403228794,10.88336116,191.89,191.88,1e-08]
[1755403230086,7.45683311,191.89,191.88,1e-08]
[1755403230405,10.88336116,191.89,191.88,0.65000001]
[1755403230591,7.37953631,191.89,191.88,0.65000001]
[1755403230908,7.45683311,191.89,191.88,1e-08]
[1755403232305,3.56382485,191.89,191.88,0.65000001]
[1755403232503,0.06,191.89,191.88,0.65000001]
[1755403232710,3.56382485,191.89,191.88,0.65000001]
[1755403232878,0.06,191.89,191.88,0.65000001]
[1755403233080,3.56382485,191.89,191.88,0.65000001]
[1755403233306,0.06,191.89,191.88,0.65000001]
[1755403233612,3.56382485,191.89,191.88,0.65000001]
[1755403233918,0.06,191.89,191.88,0.65000001]
[1755403234082,3.56382485,191.89,191.88,0.65000001]
[1755403234282,0.06,191.89,191.88,0.65000001]
[1755403234485,3.56382485,191.89,191.88,0.65000001]
[1755403234682,0.06,191.89,191.88,0.65000001]
[1755403234977,3.56382485,191.89,191.88,0.65000001]
[1755403235197,0.06,191.89,191.88,0.65000001]
[1755403235392,3.56382485,191.89,191.88,5.86159058]
[1755403235578,0.06,191.89,191.88,5.86159058]
[1755403236715,0.06,191.89,191.88,5.21159058]
[1755403237707,0.06,191.89,191.88,5.86159058]
[1755403238211,0.06,191.89,191.88,0.65000001]
[1755403238415,3.56401573,191.89,191.88,1e-08]
[1755403238713,0.06,191.89,191.88,1e-08]
[1755403238917,3.56401573,191.89,191.88,1e-08]
[1755403239086,3.95409647,191.89,191.88,1e-08]
[1755403239288,7.4581122,191.89,191.88,1e-08]
[1755403239514,3.95409647,191.89,191.88,1e-08]
[1755403239720,7.4581122,191.89,191.88,0.65000001]
[1755403240019,3.95409647,191.89,191.88,1e-08]
[1755403240191,7.4581122,191.89,191.88,1e-08]
[1755403241090,7.45852816,191.89,191.88,1e-08]
[1755403242896,3.56401573,191.89,191.88,1e-08]
[1755403243816,4.25401573,191.89,191.88,1e-08]
[1755403243996,3.56401573,191.89,191.88,1e-08]
[1755403244719,6.43594333,191.89,191.88,1e-08]
[1755403245017,98.06936851,191.89,191.88,1e-08]
[1755403248704,99.30458105,191.89,191.88,1e-08]
[1755403250094,97.97060385,191.89,191.88,1e-08]
[1755403250293,99.30513226,191.89,191.88,1e-08]
[1755403250716,99.30503365,191.89,191.88,1e-08]
[1755403253401,103.68505332,191.89,191.88,1e-08]
[1755403253840,99.30503365,191.89,191.88,1e-08]
[1755403254196,103.68505332,191.89,191.88,1e-08]
[1755403259133,103.69067602,191.89,191.88,1e-08]
[1755403261230,98.45488766,191.89,191.88,1e-08]
[1755403261410,103.69008049,191.89,191.88,1e-08]
[1755403261835,103.69002186,191.89,191.88,1e-08]
[1755403262134,103.68985058,191.89,191.88,1e-08]
[1755403270443,103.68760683,191.89,191.88,1e-08]
[1755403270647,102.45382729,191.89,191.88,1e-08]
[1755403270844,98.5555688,191.89,191.88,1e-08]
[1755403271021,102.45382048,191.89,191.88,1e-08]
[1755403272246,66.07382048,191.89,191.88,1e-08]
[1755403272414,102.45382048,191.89,191.88,1e-08]
[1755403273548,102.45373948,191.89,191.88,1e-08]
[1755403276250,66.07373948,191.89,191.88,1e-08]
[1755403276758,102.45373948,191.89,191.88,1e-08]
[1755403279460,97.22110812,191.89,191.88,1e-08]
[1755403279625,102.45469889,191.89,191.88,1e-08]
[1755403281564,57.99001931,191.89,191.88,1e-08]
[1755403281853,92.18336024,191.89,191.88,0.69000001]
[1755403282040,97.39467922,191.89,191.88,1e-08]
[1755403282568,97.39713998,191.89,191.88,1e-08]
[1755403282934,101.77715965,191.89,191.88,1e-08]
[1755403283354,102.44715965,191.89,191.88,1e-08]
[1755403285244,98.06713998,191.89,191.88,1e-08]
[1755403285435,97.39713998,191.89,191.88,1e-08]
[1755403285635,101.78838745,191.89,191.88,1e-08]
[1755403285837,97.39713998,191.89,191.88,1e-08]
[1755403286239,31.21186219,191.87,191.86,0.72]
[1755403286448,78.52529005,191.87,191.86,0.72]
[1755403286655,82.91745645,191.87,191.86,0.72]
[1755403287059,97.19217319,191.87,191.86,0.03]
[1755403288550,97.20052213,191.87,191.86,0.03]
[1755403289477,0.14216157,191.86,191.84,0.03]
[1755403289652,68.96205997,191.85,191.84,0.03]
[1755403289850,69.10422154,191.85,191.84,0.03]
[1755403290070,63.24015394,191.85,191.84,0.03]
[1755403290372,65.32985494,191.85,191.84,0.03]
[1755403291068,65.32985494,191.85,191.84,0.72]
[1755403291069,18.38604489,191.85,191.84,0.72]
[1755403291278,10.98027877,191.85,191.84,0.72]
[1755403291447,13.17363937,191.85,191.84,0.72]
[1755403292851,17.56870965,191.85,191.84,0.72]
[1755403293678,10.98027877,191.85,191.84,0.72]
[1755403295079,10.8381172,191.85,191.84,0.72]
[1755403295265,8.7484162,191.85,191.84,0.72]
[1755403295470,7.41103294,191.85,191.84,0.72]
[1755403296193,7.41103294,191.85,191.84,5.93267723]
[1755403296395,7.41007633,191.85,191.84,5.93267723]
[1755403296770,7.41007633,191.85,191.84,0.72]
[1755403297683,7.41007633,191.85,191.84,5.93267723]
[1755403297922,7.41007633,191.85,191.84,9.35926072]
[1755403300576,3.50401573,191.85,191.84,9.35926072]
[1755403300777,7.40862133,191.85,191.84,9.35926072]
[1755403300982,3.50401573,191.85,191.84,9.35926072]
[1755403301504,0.06,191.89,191.84,9.35926072]
[1755403301670,7.41659277,191.88,191.86,8.63854173]
[1755403301872,0.06,191.89,191.87,3.42658349]
[1755403302105,0.06,191.89,191.88,3.42658349]
[1755403302301,7.47613779,191.89,191.88,3.42658349]
[1755403302598,7.47613779,191.89,191.88,4.11658349]
[1755403302978,7.47613779,191.89,191.88,9.32817406]
[1755403303178,3.57283445,191.89,191.88,9.32817406]
[1755403304205,3.57283445,191.89,191.88,4.11658349]
[1755403304791,3.57283445,191.89,191.88,0.69]
[1755403304988,3.57283445,191.89,191.88,4.11658349]
[1755403305293,0.06,191.89,191.88,4.11658349]
[1755403307494,0.06,191.89,191.88,9.32817406]
[1755403317816,0.06,191.89,191.88,89.22817406]
[1755403319000,0.06,191.89,191.88,125.58817406]
[1755403320028,1e-08,191.89,191.88,144.26313469]
[1755403320327,1e-08,191.91,191.9,0.14216157]
[1755403320494,1e-08,191.91,191.9,19.90606537]
[1755403320694,1e-08,191.91,191.9,56.24606537]
[1755403321234,1e-08,191.91,191.9,52.81948188]
[1755403321398,1e-08,191.91,191.9,61.45711279]
[1755403321798,1e-08,191.91,191.9,25.11711279]
[1755403322027,1e-08,191.91,191.9,61.45711279]
[1755403325483,0.06,191.93,191.92,15.24837714]
[1755403325600,0.06,191.97,191.94,29.42658349]
[1755403325800,0.06,191.97,191.94,66.28757963]
[1755403326306,0.06,191.97,191.94,66.99757963]
[1755403326700,0.06,191.97,191.94,72.20754107]
[1755403327102,0.06,191.97,191.96,3.42658349]
[1755403327400,0.06,191.97,191.96,0.52094186]
[1755403327628,0.06,191.97,191.96,16.33715743]
[1755403327811,0.06,191.97,191.96,19.76374092]
[1755403328005,0.06,191.97,191.96,16.33715743]
[1755403328229,0.06,191.97,191.96,19.76374092]
[1755403328430,0.06,191.97,191.96,56.10374092]
[1755403328622,0.06,191.97,191.96,61.31315954]
[1755403331532,0.06,191.97,191.96,57.88657605]
[1755403331765,0.06,191.97,191.96,61.31315954]
[1755403331942,0.06,191.97,191.96,57.88657605]
[1755403332119,0.06,191.97,191.96,61.31315954]
[1755403333425,0.06,191.97,191.96,141.21315954]
[1755403333623,0.06,191.97,191.96,140.69221768]
[1755403334617,1e-08,191.97,191.96,60.93437925]
[1755403334820,1e-08,191.97,191.96,61.45532111]
[1755403338278,1e-08,191.97,191.96,61.43532111]
[1755403338779,0.06,191.99,191.96,61.43532111]
[1755403338780,1e-08,191.99,191.97,15.24837714]
[1755403338996,1e-08,192.0,191.99,41.24837714]
[1755403339210,1e-08,192.0,191.99,124.57496063]
[1755403339489,0.69000001,192.0,191.99,3.42658349]
[1755403339792,0.69000001,192.0,191.99,36.5]
[1755403340078,0.69000001,192.0,191.99,39.92658349]
[1755403340484,1e-08,192.0,191.99,45.1351881]
[1755403340983,0.69000001,192.0,191.99,45.1351881]
[1755403341882,0.69000001,192.0,191.99,36.5]
[1755403342385,0.69000001,192.0,191.99,41.70860461]
[1755403343391,1e-08,192.0,191.99,45.1351881]
[1755403343563,1e-08,192.0,191.99,41.70860461]
[1755403343763,0.69000001,192.0,191.99,36.5]
[1755403343955,0.69000001,192.0,191.98,5.20884069]
[1755403344156,1e-08,192.0,191.99,39.94658349]
[1755403344377,1e-08,192.0,191.99,45.1551881]
[1755403344864,0.69000001,192.0,191.99,45.1551881]
[1755403347661,1e-08,192.0,191.99,45.1551881]
[1755403348185,1e-08,192.0,191.99,45.8351881]
[1755403349088,1e-08,192.0,191.99,45.1551881]
[1755403349291,1e-08,192.0,191.99,41.72860461]
[1755403349466,1e-08,192.0,191.99,45.1551881]
[1755403350923,1e-08,192.0,191.99,46.35604856]
[1755403351434,0.69000001,192.0,191.99,45.1551881]
[1755403351633,0.69000001,192.0,191.99,41.98860461]
[1755403352438,1e-08,192.0,191.99,45.4151881]
[1755403353002,1e-08,192.0,191.99,42.66860461]
[1755403353195,0.69000001,192.0,191.99,36.78]
[1755403354121,0.69000001,192.0,191.99,41.98860461]
[1755403354529,1e-08,192.0,191.99,41.98860461]
[1755403354901,0.69000001,192.0,191.99,41.98860461]
[1755403355414,0.69000001,192.0,191.99,42.06860461]
[1755403356315,0.69000001,192.0,191.99,45.4951881]
[1755403356839,0.69000001,192.0,191.99,42.06860461]
[1755403357034,1e-08,192.0,191.99,8.6351881]
[1755403357207,1e-08,192.0,191.99,45.4951881]
[1755403357530,1e-08,192.0,191.99,46.2951881]